[Event "*** SCC Grand Prix: Titled Tuesday Blitz"]
[Site "Chess.com"]
[Date "2020.07.07"]
[Round "9"]
[White "BocharovD"]
[Black "Rodalquilar"]
[Result "1-0"]
[WhiteElo "2760"]
[BlackElo "2626"]
[TimeControl "180+1"]
[EndTime "11:46:13 PDT"]
[Termination "BocharovD won on time"]

1. d4 {[%clk 0:03:00.9]} 1... d5 {[%clk 0:02:59.8]} 2. c4 {[%clk 0:03:01.8]}
2... e6 {[%clk 0:03:00.1]} 3. Nf3 {[%clk 0:02:47.7]} 3... a6 {[%clk 0:02:56.9]}
4. Bg5 {[%clk 0:02:47]} 4... Be7 {[%clk 0:02:21.7]} 5. Bxe7 {[%clk 0:02:46]}
5... Qxe7 {[%clk 0:02:22.2]} 6. Nbd2 {[%clk 0:02:46.1]} 6... Nf6 {[%clk
0:02:22.5]} 7. g3 {[%clk 0:02:45.9]} 7... dxc4 {[%clk 0:02:18.1]} 8. Nxc4 {[%clk
0:02:45.5]} 8... b5 {[%clk 0:02:18.7]} 9. Nce5 {[%clk 0:02:44.3]} 9... Bb7
{[%clk 0:02:19.2]} 10. Bg2 {[%clk 0:02:44.3]} 10... O-O {[%clk 0:02:18.2]} 11.
O-O {[%clk 0:02:43.1]} 11... c5 {[%clk 0:02:09.4]} 12. dxc5 {[%clk 0:02:38.4]}
12... Qxc5 {[%clk 0:02:09.7]} 13. Rc1 {[%clk 0:02:37.9]} 13... Qb6 {[%clk
0:02:10.1]} 14. Qd4 {[%clk 0:02:37.2]} 14... Qxd4 {[%clk 0:02:00.9]} 15. Nxd4
{[%clk 0:02:38.1]} 15... Bxg2 {[%clk 0:02:01.5]} 16. Kxg2 {[%clk 0:02:36]} 16...
Nbd7 {[%clk 0:02:02.4]} 17. Nxd7 {[%clk 0:02:28.1]} 17... Nxd7 {[%clk
0:02:02.8]} 18. Nc6 {[%clk 0:02:27.5]} 18... Rfe8 {[%clk 0:01:58.7]} 19. Rfd1
{[%clk 0:02:25.9]} 19... Nb6 {[%clk 0:01:58.4]} 20. b3 {[%clk 0:02:24.3]} 20...
Kf8 {[%clk 0:01:58.2]} 21. Ne5 {[%clk 0:02:18.9]} 21... Rec8 {[%clk 0:01:52.7]}
22. Rxc8+ {[%clk 0:02:16.9]} 22... Rxc8 {[%clk 0:01:52.4]} 23. Rd6 {[%clk
0:02:16.2]} 23... Nd5 {[%clk 0:01:31.9]} 24. Rxa6 {[%clk 0:02:12.7]} 24... Rc2
{[%clk 0:01:25.6]} 25. Kf3 {[%clk 0:02:02.9]} 25... f6 {[%clk 0:01:18.7]} 26.
Nd3 {[%clk 0:01:50.8]} 26... Nc3 {[%clk 0:01:16.3]} 27. Nb4 {[%clk 0:01:45.5]}
27... Rb2 {[%clk 0:00:52.9]} 28. Rxe6 {[%clk 0:01:43.9]} 28... Kf7 {[%clk
0:00:42.6]} 29. Rc6 {[%clk 0:01:32.6]} 29... Nxe2 {[%clk 0:00:41.8]} 30. Ke3
{[%clk 0:01:32.3]} 30... Ng1 {[%clk 0:00:38.3]} 31. Rc1 {[%clk 0:01:30.1]} 31...
Nh3 {[%clk 0:00:38.2]} 32. Rc2 {[%clk 0:01:27.6]} 32... Rb1 {[%clk 0:00:38.8]}
33. Kd4 {[%clk 0:01:23.3]} 33... Ng5 {[%clk 0:00:34.4]} 34. Kc5 {[%clk
0:01:21.7]} 34... Ne6+ {[%clk 0:00:32.4]} 35. Kb6 {[%clk 0:01:17.4]} 35... Nd4
{[%clk 0:00:28]} 36. Rd2 {[%clk 0:01:16.8]} 36... Nf3 {[%clk 0:00:28.5]} 37.
Rd7+ {[%clk 0:01:14.5]} 37... Kg6 {[%clk 0:00:28.9]} 38. Kxb5 {[%clk 0:01:11.2]}
38... Nxh2 {[%clk 0:00:24.9]} 39. a4 {[%clk 0:01:05.6]} 39... Rxb3 {[%clk
0:00:24.2]} 40. a5 {[%clk 0:01:05.7]} 40... Ra3 {[%clk 0:00:19.9]} 41. a6 {[%clk
0:01:04.8]} 41... Nf3 {[%clk 0:00:20.4]} 42. Rd3 {[%clk 0:01:03.7]} 42... Rxd3
{[%clk 0:00:16.9]} 43. Nxd3 {[%clk 0:01:03.8]} 43... Nd4+ {[%clk 0:00:17.3]} 44.
Kb6 {[%clk 0:01:03.8]} 1-0

[Event "*** SCC Grand Prix: Titled Tuesday Blitz"]
[Site "Chess.com"]
[Date "2020.07.07"]
[Round "9"]
[White "TigrVShlyape"]
[Black "carlesdc96"]
[Result "1-0"]
[WhiteElo "2891"]
[BlackElo "2715"]
[TimeControl "180+1"]
[EndTime "11:46:16 PDT"]
[Termination "TigrVShlyape won by resignation"]

1. d4 {[%clk 0:03:00.9]} 1... e6 {[%clk 0:02:59.5]} 2. Bf4 {[%clk 0:02:58.8]}
2... Nf6 {[%clk 0:02:58]} 3. Nf3 {[%clk 0:02:58.2]} 3... c5 {[%clk 0:02:57.5]}
4. e3 {[%clk 0:02:58.1]} 4... Nc6 {[%clk 0:02:57.3]} 5. Nbd2 {[%clk 0:02:56.5]}
5... d5 {[%clk 0:02:56.6]} 6. c3 {[%clk 0:02:56.1]} 6... Bd6 {[%clk 0:02:56.3]}
7. Bg3 {[%clk 0:02:55.4]} 7... O-O {[%clk 0:02:56.3]} 8. Bd3 {[%clk 0:02:55.5]}
8... b6 {[%clk 0:02:56]} 9. Qe2 {[%clk 0:02:55.7]} 9... Bb7 {[%clk 0:02:55.1]}
10. Rd1 {[%clk 0:02:55.6]} 10... h6 {[%clk 0:02:51.3]} 11. Ne5 {[%clk
0:02:52.7]} 11... Ne7 {[%clk 0:02:44.6]} 12. Bh4 {[%clk 0:02:42.6]} 12... Nd7
{[%clk 0:02:33.2]} 13. f4 {[%clk 0:02:38]} 13... Qc7 {[%clk 0:02:27.7]} 14. Qg4
{[%clk 0:02:20.5]} 14... f5 {[%clk 0:02:17]} 15. Qh3 {[%clk 0:02:15.7]} 15...
Nf6 {[%clk 0:02:15.1]} 16. Bxf6 {[%clk 0:01:51.6]} 16... Rxf6 {[%clk 0:02:14.4]}
17. g4 {[%clk 0:01:43.5]} 17... Bxe5 {[%clk 0:01:42.1]} 18. fxe5 {[%clk
0:01:42]} 18... Rf7 {[%clk 0:01:42.2]} 19. Rg1 {[%clk 0:01:36.9]} 19... fxg4
{[%clk 0:01:32.2]} 20. Qxg4 {[%clk 0:01:29.1]} 20... Nf5 {[%clk 0:01:25.1]} 21.
Ke2 {[%clk 0:01:14.8]} 21... Raf8 {[%clk 0:01:12.7]} 22. Rdf1 {[%clk 0:01:08.2]}
22... Qc8 {[%clk 0:01:02.6]} 23. b4 {[%clk 0:00:34.5]} 23... cxb4 {[%clk
0:00:36.7]} 24. cxb4 {[%clk 0:00:34.2]} 24... Qd7 {[%clk 0:00:37.3]} 25. b5
{[%clk 0:00:33.2]} 25... Ra8 {[%clk 0:00:31.4]} 26. Qg6 {[%clk 0:00:30.9]} 26...
Kh8 {[%clk 0:00:24.6]} 27. a4 {[%clk 0:00:30]} 27... a6 {[%clk 0:00:23.3]} 28.
Bxf5 {[%clk 0:00:28.7]} 28... Rxf5 {[%clk 0:00:17.4]} 29. Rxf5 {[%clk
0:00:28.6]} 29... exf5 {[%clk 0:00:18.1]} 30. e6 {[%clk 0:00:28.8]} 30... Qe7
{[%clk 0:00:18.2]} 31. Nf3 {[%clk 0:00:22.5]} 31... axb5 {[%clk 0:00:17.7]} 32.
Ne5 {[%clk 0:00:21.3]} 32... Qf6 {[%clk 0:00:11]} 33. Nf7+ {[%clk 0:00:19.9]}
33... Kg8 {[%clk 0:00:10.8]} 34. Qxf6 {[%clk 0:00:20.3]} 1-0

[Event "*** SCC Grand Prix: Titled Tuesday Blitz"]
[Site "Chess.com"]
[Date "2020.07.07"]
[Round "9"]
[White "ajdemipopushi"]
[Black "antoszu"]
[Result "0-1"]
[WhiteElo "2368"]
[BlackElo "2545"]
[TimeControl "180+1"]
[EndTime "11:46:16 PDT"]
[Termination "antoszu won on time"]

1. Nf3 {[%clk 0:03:00.9]} 1... d5 {[%clk 0:02:59.7]} 2. g3 {[%clk 0:03:01]} 2...
c6 {[%clk 0:02:56.9]} 3. c4 {[%clk 0:03:00.8]} 3... Bg4 {[%clk 0:02:56.2]} 4.
Bg2 {[%clk 0:03:00.6]} 4... e6 {[%clk 0:02:55.5]} 5. O-O {[%clk 0:02:55.9]} 5...
Nf6 {[%clk 0:02:55]} 6. d4 {[%clk 0:02:53.7]} 6... Be7 {[%clk 0:02:50.9]} 7. Ne5
{[%clk 0:02:53]} 7... Bf5 {[%clk 0:02:48.2]} 8. Nc3 {[%clk 0:02:51.9]} 8... O-O
{[%clk 0:02:47.5]} 9. Qb3 {[%clk 0:02:49.2]} 9... Qc7 {[%clk 0:02:35.8]} 10. Bf4
{[%clk 0:02:40]} 10... Qc8 {[%clk 0:02:30.1]} 11. Rac1 {[%clk 0:02:31.7]} 11...
dxc4 {[%clk 0:02:24.3]} 12. Nxc4 {[%clk 0:02:30.9]} 12... Rd8 {[%clk 0:02:20.3]}
13. e4 {[%clk 0:02:21]} 13... Bg6 {[%clk 0:02:20.4]} 14. Rfd1 {[%clk 0:02:15.7]}
14... Na6 {[%clk 0:02:16]} 15. Ne5 {[%clk 0:01:52.7]} 15... Nc7 {[%clk
0:02:12.1]} 16. h3 {[%clk 0:01:41.4]} 16... Nce8 {[%clk 0:01:55.2]} 17. d5
{[%clk 0:01:34.6]} 17... exd5 {[%clk 0:01:51.4]} 18. exd5 {[%clk 0:01:34.3]}
18... c5 {[%clk 0:01:51.8]} 19. d6 {[%clk 0:00:43.6]} 19... Nxd6 {[%clk
0:01:38.5]} 20. Nxg6 {[%clk 0:00:43.3]} 20... hxg6 {[%clk 0:01:39.4]} 21. Bxd6
{[%clk 0:00:43.4]} 21... Bxd6 {[%clk 0:01:31.7]} 22. Bxb7 {[%clk 0:00:34.7]}
22... Qxh3 {[%clk 0:01:28.8]} 23. Bxa8 {[%clk 0:00:21.7]} 23... Rxa8 {[%clk
0:01:22.3]} 24. Qb7 {[%clk 0:00:18]} 24... Rb8 {[%clk 0:00:46.1]} 25. Qg2 {[%clk
0:00:14.1]} 25... Qxg2+ {[%clk 0:00:46]} 26. Kxg2 {[%clk 0:00:14.1]} 26... Be5
{[%clk 0:00:46.5]} 27. b3 {[%clk 0:00:13.9]} 27... Ng4 {[%clk 0:00:32.9]} 28.
Ne4 {[%clk 0:00:13.3]} 28... Bd4 {[%clk 0:00:31.6]} 29. Rc2 {[%clk 0:00:06.8]}
29... f5 {[%clk 0:00:25]} 30. Nxc5 {[%clk 0:00:04.8]} 30... Bxf2 {[%clk
0:00:24.1]} 0-1

[Event "*** SCC Grand Prix: Titled Tuesday Blitz"]
[Site "Chess.com"]
[Date "2020.07.07"]
[Round "9"]
[White "gagtemp"]
[Black "hongnhung1234"]
[Result "0-1"]
[WhiteElo "1906"]
[BlackElo "2206"]
[TimeControl "180+1"]
[EndTime "11:46:16 PDT"]
[Termination "hongnhung1234 won by resignation"]

1. e4 {[%clk 0:03:00.9]} 1... c5 {[%clk 0:02:53.7]} 2. Nf3 {[%clk 0:03:00.4]}
2... e6 {[%clk 0:02:53.7]} 3. d4 {[%clk 0:02:59.8]} 3... cxd4 {[%clk 0:02:54.6]}
4. Nxd4 {[%clk 0:02:59.8]} 4... Nc6 {[%clk 0:02:53.9]} 5. Nc3 {[%clk 0:03:00]}
5... Qc7 {[%clk 0:02:53.9]} 6. Be3 {[%clk 0:02:59.6]} 6... a6 {[%clk 0:02:53.9]}
7. Bd3 {[%clk 0:02:58.8]} 7... Nf6 {[%clk 0:02:48.1]} 8. O-O {[%clk 0:02:58.2]}
8... Be7 {[%clk 0:02:45.5]} 9. Kh1 {[%clk 0:02:58]} 9... O-O {[%clk 0:02:44.5]}
10. f4 {[%clk 0:02:57.8]} 10... d6 {[%clk 0:02:41.5]} 11. Qf3 {[%clk 0:02:53.7]}
11... Nxd4 {[%clk 0:02:31.2]} 12. Bxd4 {[%clk 0:02:53]} 12... b5 {[%clk
0:02:29.4]} 13. a3 {[%clk 0:02:50.4]} 13... Bb7 {[%clk 0:02:27.9]} 14. Qh3
{[%clk 0:02:46.8]} 14... e5 {[%clk 0:02:18.6]} 15. Be3 {[%clk 0:02:42.5]} 15...
Rad8 {[%clk 0:01:55.8]} 16. fxe5 {[%clk 0:02:33.1]} 16... dxe5 {[%clk
0:01:53.9]} 17. Bg5 {[%clk 0:02:30]} 17... Kh8 {[%clk 0:01:20.1]} 18. Bxf6
{[%clk 0:02:18.3]} 18... Bxf6 {[%clk 0:01:21]} 19. Rxf6 {[%clk 0:02:05.9]} 19...
gxf6 {[%clk 0:01:21.9]} 20. Nd5 {[%clk 0:02:04.3]} 20... Bxd5 {[%clk 0:00:45.2]}
21. exd5 {[%clk 0:02:03.4]} 21... f5 {[%clk 0:00:45.3]} 22. Bxf5 {[%clk
0:01:58.1]} 22... f6 {[%clk 0:00:44.7]} 23. Be6 {[%clk 0:01:46.5]} 23... Qxc2
{[%clk 0:00:40.3]} 24. Bf5 {[%clk 0:01:29.3]} 24... Qc7 {[%clk 0:00:39.9]} 25.
Rd1 {[%clk 0:01:22.7]} 25... Qf7 {[%clk 0:00:37]} 26. d6 {[%clk 0:01:15.1]}
26... Qg7 {[%clk 0:00:30.7]} 27. d7 {[%clk 0:01:13.6]} 27... Rf7 {[%clk
0:00:22.8]} 28. Be6 {[%clk 0:01:10.8]} 28... Re7 {[%clk 0:00:21]} 29. Bf5 {[%clk
0:01:10.2]} 29... Qg5 {[%clk 0:00:20.3]} 30. Rf1 {[%clk 0:01:03.7]} 30... Qg7
{[%clk 0:00:17.4]} 31. Be6 {[%clk 0:00:54.6]} 31... e4 {[%clk 0:00:17.4]} 32.
Bf5 {[%clk 0:00:49.9]} 32... e3 {[%clk 0:00:16.7]} 33. Re1 {[%clk 0:00:50]}
33... Qg5 {[%clk 0:00:16]} 34. Qf3 {[%clk 0:00:44.9]} 34... e2 {[%clk
0:00:13.9]} 35. Rxe2 {[%clk 0:00:38]} 35... Qc1+ {[%clk 0:00:13.2]} 0-1

[Event "*** SCC Grand Prix: Titled Tuesday Blitz"]
[Site "Chess.com"]
[Date "2020.07.07"]
[Round "9"]
[White "sertalzin"]
[Black "cukin84"]
[Result "0-1"]
[WhiteElo "2019"]
[BlackElo "2179"]
[TimeControl "180+1"]
[EndTime "11:46:17 PDT"]
[Termination "cukin84 won on time"]

1. d4 {[%clk 0:03:00.9]} 1... f5 {[%clk 0:02:59.4]} 2. g3 {[%clk 0:02:57.8]}
2... Nf6 {[%clk 0:02:58.9]} 3. Bg2 {[%clk 0:02:56.7]} 3... g6 {[%clk 0:02:59.2]}
4. Nf3 {[%clk 0:02:57.1]} 4... Bg7 {[%clk 0:02:59.4]} 5. O-O {[%clk 0:02:57.7]}
5... O-O {[%clk 0:02:59.5]} 6. c4 {[%clk 0:02:58.2]} 6... d6 {[%clk 0:02:59.8]}
7. Nc3 {[%clk 0:02:58.7]} 7... Qe8 {[%clk 0:03:00]} 8. d5 {[%clk 0:02:57]} 8...
a5 {[%clk 0:02:55.7]} 9. Rb1 {[%clk 0:02:55.2]} 9... Na6 {[%clk 0:02:55.3]} 10.
b3 {[%clk 0:02:55.2]} 10... Bd7 {[%clk 0:02:53.5]} 11. Bb2 {[%clk 0:02:52.9]}
11... Nc5 {[%clk 0:02:46.2]} 12. Nd4 {[%clk 0:02:51.3]} 12... Nfe4 {[%clk
0:02:43.2]} 13. e3 {[%clk 0:02:23.6]} 13... Nxc3 {[%clk 0:02:34.3]} 14. Bxc3
{[%clk 0:02:22.5]} 14... a4 {[%clk 0:02:34.6]} 15. b4 {[%clk 0:02:16.6]} 15...
Ne4 {[%clk 0:02:34.2]} 16. Ba1 {[%clk 0:02:05.1]} 16... c5 {[%clk 0:02:23.9]}
17. dxc6 {[%clk 0:01:36.2]} 17... bxc6 {[%clk 0:02:22.5]} 18. b5 {[%clk
0:01:27.6]} 18... c5 {[%clk 0:02:22.2]} 19. Ne2 {[%clk 0:01:20.8]} 19... Bxa1
{[%clk 0:02:13.6]} 20. Rxa1 {[%clk 0:01:19.8]} 20... Be6 {[%clk 0:02:08.4]} 21.
Rc1 {[%clk 0:01:11.6]} 21... Qd8 {[%clk 0:02:05.1]} 22. Nf4 {[%clk 0:01:09.8]}
22... Bf7 {[%clk 0:02:04]} 23. h4 {[%clk 0:01:00]} 23... h6 {[%clk 0:01:59.3]}
24. h5 {[%clk 0:00:54]} 24... g5 {[%clk 0:01:58.9]} 25. Ng6 {[%clk 0:00:52.6]}
25... Re8 {[%clk 0:01:57]} 26. g4 {[%clk 0:00:36.9]} 26... e6 {[%clk 0:01:47.1]}
27. f3 {[%clk 0:00:17.6]} 27... Nf6 {[%clk 0:01:33.3]} 28. Bh3 {[%clk
0:00:15.6]} 28... fxg4 {[%clk 0:01:17.6]} 29. fxg4 {[%clk 0:00:14.7]} 29... Kg7
{[%clk 0:01:09.6]} 30. Qd3 {[%clk 0:00:12.4]} 30... d5 {[%clk 0:01:05.3]} 31.
Rcd1 {[%clk 0:00:08.5]} 31... dxc4 {[%clk 0:01:04.1]} 32. Qxc4 {[%clk
0:00:07.9]} 32... Qc7 {[%clk 0:01:02.7]} 33. Kg2 {[%clk 0:00:05.4]} 33... Qb7+
{[%clk 0:00:57.8]} 34. Kh2 {[%clk 0:00:04.2]} 34... Qe4 {[%clk 0:00:54.7]} 35.
Qxe4 {[%clk 0:00:02.9]} 35... Nxe4 {[%clk 0:00:54.4]} 36. Ne5 {[%clk 0:00:03.8]}
36... Re7 {[%clk 0:00:52.4]} 37. Nxf7 {[%clk 0:00:02.6]} 37... Rxf7 {[%clk
0:00:52.5]} 38. Rxf7+ {[%clk 0:00:02.3]} 38... Kxf7 {[%clk 0:00:52.8]} 39. Rd7+
{[%clk 0:00:03]} 39... Kf6 {[%clk 0:00:53.2]} 40. Rh7 {[%clk 0:00:01.1]} 40...
Rd8 {[%clk 0:00:52]} 0-1

[Event "*** SCC Grand Prix: Titled Tuesday Blitz"]
[Site "Chess.com"]
[Date "2020.07.07"]
[Round "9"]
[White "vovachesss"]
[Black "Forantes"]
[Result "1-0"]
[WhiteElo "2583"]
[BlackElo "2369"]
[TimeControl "180+1"]
[EndTime "11:46:19 PDT"]
[Termination "vovachesss won by checkmate"]

1. d4 {[%clk 0:03:00.9]} 1... Nf6 {[%clk 0:02:59.3]} 2. Nc3 {[%clk 0:03:01]}
2... d5 {[%clk 0:02:59]} 3. Bf4 {[%clk 0:03:00.7]} 3... g6 {[%clk 0:02:59.1]} 4.
e3 {[%clk 0:02:56.9]} 4... Bg7 {[%clk 0:02:59.4]} 5. h4 {[%clk 0:02:55.1]} 5...
h5 {[%clk 0:02:59.3]} 6. Nf3 {[%clk 0:02:53.5]} 6... O-O {[%clk 0:02:59.7]} 7.
Be2 {[%clk 0:02:49.8]} 7... c5 {[%clk 0:03:00.2]} 8. dxc5 {[%clk 0:02:33.4]}
8... Nc6 {[%clk 0:02:59.9]} 9. O-O {[%clk 0:02:32.9]} 9... Qa5 {[%clk 0:02:07]}
10. Nxd5 {[%clk 0:02:31.2]} 10... Nxd5 {[%clk 0:02:06.8]} 11. Qxd5 {[%clk
0:02:31.2]} 11... Be6 {[%clk 0:02:07.2]} 12. Qd2 {[%clk 0:02:06.8]} 12... Qxc5
{[%clk 0:01:49.4]} 13. c3 {[%clk 0:01:59.1]} 13... Bg4 {[%clk 0:01:49]} 14. Rad1
{[%clk 0:01:53.2]} 14... Rfd8 {[%clk 0:01:47.5]} 15. Qc2 {[%clk 0:01:53.2]}
15... Nb4 {[%clk 0:01:17.5]} 16. Qb3 {[%clk 0:01:40.9]} 16... Nd5 {[%clk
0:01:17.8]} 17. Bg3 {[%clk 0:01:34.2]} 17... Nxe3 {[%clk 0:01:15.4]} 18. Rxd8+
{[%clk 0:01:24.6]} 18... Rxd8 {[%clk 0:01:14.2]} 19. fxe3 {[%clk 0:01:25.5]}
19... Qxe3+ {[%clk 0:01:14.2]} 20. Rf2 {[%clk 0:01:26.1]} 20... e5 {[%clk
0:00:30.9]} 21. Qc4 {[%clk 0:00:30.1]} 21... Be6 {[%clk 0:00:20.2]} 22. Qc7
{[%clk 0:00:26.7]} 22... Rd7 {[%clk 0:00:19.9]} 23. Qb8+ {[%clk 0:00:24.6]}
23... Kh7 {[%clk 0:00:14.8]} 24. Bxe5 {[%clk 0:00:24.8]} 24... Bxe5 {[%clk
0:00:11]} 25. Qxe5 {[%clk 0:00:25.7]} 25... Qc1+ {[%clk 0:00:10.4]} 26. Kh2
{[%clk 0:00:24.4]} 26... Rd5 {[%clk 0:00:08]} 27. Ng5+ {[%clk 0:00:18.1]} 27...
Kg8 {[%clk 0:00:08.1]} 28. Qb8+ {[%clk 0:00:17.8]} 28... Kg7 {[%clk 0:00:08.7]}
29. Nxe6+ {[%clk 0:00:18.3]} 29... fxe6 {[%clk 0:00:08.8]} 30. Qf8+ {[%clk
0:00:18.3]} 30... Kh7 {[%clk 0:00:08.8]} 31. Rf7# {[%clk 0:00:19.2]} 1-0

[Event "*** SCC Grand Prix: Titled Tuesday Blitz"]
[Site "Chess.com"]
[Date "2020.07.07"]
[Round "9"]
[White "Oligan22"]
[Black "aa175"]
[Result "0-1"]
[WhiteElo "2466"]
[BlackElo "2379"]
[TimeControl "180+1"]
[EndTime "11:46:19 PDT"]
[Termination "aa175 won by resignation"]

1. e4 {[%clk 0:03:00.9]} 1... c5 {[%clk 0:02:59.7]} 2. Nf3 {[%clk 0:03:01]} 2...
d6 {[%clk 0:02:59.3]} 3. d4 {[%clk 0:03:01.7]} 3... cxd4 {[%clk 0:02:58.6]} 4.
Nxd4 {[%clk 0:03:02.6]} 4... Nf6 {[%clk 0:02:57.9]} 5. Nc3 {[%clk 0:03:03.3]}
5... a6 {[%clk 0:02:57.3]} 6. Be3 {[%clk 0:03:03.8]} 6... e6 {[%clk 0:02:57.4]}
7. f3 {[%clk 0:03:02.6]} 7... b5 {[%clk 0:02:57.6]} 8. Qd2 {[%clk 0:03:02.3]}
8... Nbd7 {[%clk 0:02:57.9]} 9. g4 {[%clk 0:03:01]} 9... h6 {[%clk 0:02:56.1]}
10. O-O-O {[%clk 0:03:00.4]} 10... Bb7 {[%clk 0:02:55.4]} 11. h4 {[%clk
0:02:59.3]} 11... b4 {[%clk 0:02:55.1]} 12. Na4 {[%clk 0:02:56.3]} 12... Qa5
{[%clk 0:02:54.7]} 13. b3 {[%clk 0:02:56.5]} 13... Nc5 {[%clk 0:02:54.4]} 14. a3
{[%clk 0:02:56.2]} 14... Nxa4 {[%clk 0:02:54.6]} 15. axb4 {[%clk 0:02:56.5]}
15... Qc7 {[%clk 0:02:55]} 16. bxa4 {[%clk 0:02:56.7]} 16... d5 {[%clk
0:02:55.1]} 17. e5 {[%clk 0:02:50.3]} 17... Nd7 {[%clk 0:02:55]} 18. f4 {[%clk
0:02:49.9]} 18... Nb6 {[%clk 0:02:55.6]} 19. a5 {[%clk 0:02:45.8]} 19... Nc4
{[%clk 0:02:33.7]} 20. Qc3 {[%clk 0:02:19.5]} 20... Rc8 {[%clk 0:02:23.8]} 21.
Rh3 {[%clk 0:02:19.4]} 21... Nxe3 {[%clk 0:02:16]} 22. Qxc7 {[%clk 0:02:19.2]}
22... Rxc7 {[%clk 0:02:16.9]} 23. Rxe3 {[%clk 0:02:19.3]} 23... Bxb4 {[%clk
0:02:17.4]} 24. Nb3 {[%clk 0:02:15.1]} 24... g5 {[%clk 0:02:15.8]} 25. fxg5
{[%clk 0:02:06.6]} 25... hxg5 {[%clk 0:02:16.7]} 26. h5 {[%clk 0:02:07.1]} 26...
Ke7 {[%clk 0:01:38.2]} 27. Bd3 {[%clk 0:01:24.1]} 27... Bc6 {[%clk 0:01:01]} 28.
Bxa6 {[%clk 0:01:15.4]} 28... Ba4 {[%clk 0:00:55.8]} 29. Kb2 {[%clk 0:00:56.4]}
29... Rb8 {[%clk 0:00:49.4]} 30. h6 {[%clk 0:00:46.5]} 30... Bxa5 {[%clk
0:00:40.3]} 31. h7 {[%clk 0:00:36.1]} 31... Bb6 {[%clk 0:00:34.5]} 32. Rh3
{[%clk 0:00:36]} 32... Rh8 {[%clk 0:00:29.3]} 33. Rh5 {[%clk 0:00:24.7]} 33...
Be3 {[%clk 0:00:20.1]} 34. Rd3 {[%clk 0:00:23]} 34... Bf4 {[%clk 0:00:17.4]} 35.
Rc3 {[%clk 0:00:14.2]} 35... Bxe5 {[%clk 0:00:16.7]} 0-1

[Event "*** SCC Grand Prix: Titled Tuesday Blitz"]
[Site "Chess.com"]
[Date "2020.07.07"]
[Round "9"]
[White "rugbyclub"]
[Black "WilliamSchill"]
[Result "1-0"]
[WhiteElo "2121"]
[BlackElo "1961"]
[TimeControl "180+1"]
[EndTime "11:46:19 PDT"]
[Termination "rugbyclub won on time"]

1. c4 {[%clk 0:03:00.1]} 1... Nf6 {[%clk 0:02:58.9]} 2. Nc3 {[%clk 0:03:00]}
2... g6 {[%clk 0:02:58.3]} 3. e4 {[%clk 0:02:55.6]} 3... d6 {[%clk 0:02:58.2]}
4. d4 {[%clk 0:02:55.9]} 4... Bg7 {[%clk 0:02:58.1]} 5. Be2 {[%clk 0:02:56.5]}
5... O-O {[%clk 0:02:54.8]} 6. Nf3 {[%clk 0:02:56.9]} 6... e5 {[%clk 0:02:53.8]}
7. d5 {[%clk 0:02:56.8]} 7... a5 {[%clk 0:02:52.4]} 8. Bg5 {[%clk 0:02:55.2]}
8... h6 {[%clk 0:02:51.8]} 9. Bh4 {[%clk 0:02:54.4]} 9... Na6 {[%clk 0:02:51.4]}
10. Nd2 {[%clk 0:02:53.2]} 10... Bd7 {[%clk 0:02:42.9]} 11. a3 {[%clk
0:02:46.6]} 11... Qe8 {[%clk 0:02:07.9]} 12. b3 {[%clk 0:02:44.6]} 12... Nh7
{[%clk 0:02:06.9]} 13. Rb1 {[%clk 0:02:31.4]} 13... f5 {[%clk 0:02:05.5]} 14. f3
{[%clk 0:02:18.8]} 14... Bf6 {[%clk 0:01:46.5]} 15. Bf2 {[%clk 0:02:14.6]} 15...
Nc5 {[%clk 0:01:28.4]} 16. b4 {[%clk 0:02:00]} 16... axb4 {[%clk 0:01:28.4]} 17.
axb4 {[%clk 0:02:00.4]} 17... Na4 {[%clk 0:01:28.4]} 18. Nxa4 {[%clk 0:01:57.6]}
18... Bxa4 {[%clk 0:01:27.7]} 19. Qc1 {[%clk 0:01:55.7]} 19... Qe7 {[%clk
0:01:20.1]} 20. O-O {[%clk 0:01:53.2]} 20... Bg5 {[%clk 0:01:13.8]} 21. c5
{[%clk 0:01:50.1]} 21... fxe4 {[%clk 0:01:09.1]} 22. fxe4 {[%clk 0:01:48.4]}
22... Bf4 {[%clk 0:00:40.7]} 23. Qc3 {[%clk 0:01:33.8]} 23... Ng5 {[%clk
0:00:30.8]} 24. Bd3 {[%clk 0:00:55.8]} 24... Nh3+ {[%clk 0:00:22]} 25. gxh3
{[%clk 0:00:51.8]} 25... Qg5+ {[%clk 0:00:21.9]} 26. Kh1 {[%clk 0:00:50.1]}
26... Bxd2 {[%clk 0:00:21.9]} 27. Qb2 {[%clk 0:00:44.2]} 27... Bf4 {[%clk
0:00:15.6]} 28. Rg1 {[%clk 0:00:39.6]} 28... Qh5 {[%clk 0:00:15.5]} 29. Be2
{[%clk 0:00:39.7]} 29... Qxh3 {[%clk 0:00:13.5]} 30. Bg3 {[%clk 0:00:29.3]}
30... Bd7 {[%clk 0:00:07.8]} 31. Bxf4 {[%clk 0:00:19.8]} 31... Rxf4 {[%clk
0:00:07.5]} 32. Rxg6+ {[%clk 0:00:20]} 32... Kh7 {[%clk 0:00:07.3]} 33. Rbg1
{[%clk 0:00:19.9]} 1-0